fUST/lending_fUST_20250719
["ID","MTS","AMOUNT","RATE_DAILY","PERIOD"]
[373105891,1752861052112,-460.0,0.00019195,2]
[373105893,1752861052122,-461.19215349,0.00019195,2]
[373105894,1752861052131,-460.0,0.00019195,2]
[373105896,1752861052140,-716.87,0.00019195,2]
[373105898,1752861052149,-460.0,0.00019195,2]
[373105900,1752861052160,-460.0,0.00019196,2]
[373105902,1752861052170,-460.0,0.00019196,2]
[373105904,1752861052179,-460.0,0.00019196,2]
[373105905,1752861052187,-460.0,0.00019196,2]
[373105906,1752861052197,-494.2,0.00019196,2]
[373105907,1752861052206,-460.0,0.00019196,2]
[373105908,1752861052215,-460.0,0.00019196,2]
[373105909,1752861052225,-604.29,0.00019196,2]
[373105910,1752861052234,-460.0,0.00019196,2]
[373105911,1752861052243,-460.0,0.00019196,2]
[373105912,1752861052253,-460.0,0.00019196,2]
[373105913,1752861052262,-460.0,0.00019197,2]
[373105914,1752861052272,-455.01697286,0.00019197,2]
[373105915,1752861052281,-2087.03069484,0.00019279,2]
[373105916,1752861052290,-8157.33118936,0.00019329,2]
[373105918,1752861052300,-500.0,0.00019338,2]
[373105920,1752861052310,-1244.16,0.00019366,2]
[373105922,1752861052321,-460.0,0.00019366,2]
[373105924,1752861052331,-1142.47,0.00019366,2]
[373105926,1752861052340,-608.28,0.00019366,2]
[373105928,1752861052350,-460.0,0.00019366,2]
[373105930,1752861052359,-460.0,0.00019366,2]
[373105932,1752861052369,-151.0,0.00019369,2]
[373105934,1752861052378,-3269.89,0.00019369,2]
[373105936,1752861052388,-798.34,0.00019369,2]
[373105938,1752861052397,-1595.04393525,0.00019402,2]
[373105940,1752861052407,-881.34,0.00019464,2]
[373105942,1752861052416,-980.56,0.00019467,2]
[373105944,1752861052426,-1446.12,0.00019467,2]
[373105946,1752861052435,-508.93,0.00019467,2]
[373105948,1752861052445,-1152.65,0.00019467,2]
[373105950,1752861052454,-2211.27,0.00019467,2]
[373105952,1752861052463,-515.49977529,0.00019468,2]
[373105954,1752861052472,-1810.51,0.00019468,2]
[373105956,1752861052483,-525.77,0.00019468,2]
[373105958,1752861052494,-460.0,0.00019468,2]
[373105960,1752861052504,-957.04,0.00019468,2]
[373105962,1752861052513,-625.7,0.00019468,2]
[373105964,1752861052522,-1034.69,0.00019468,2]
[373105966,1752861052532,-460.0,0.00019468,2]
[373105968,1752861052541,-460.0,0.00019468,2]
[373105970,1752861052551,-460.0,0.00019468,2]
[373105972,1752861052561,-460.0,0.00019468,2]
[373105974,1752861052570,-460.0,0.00019469,2]
[373105976,1752861052580,-460.0,0.00019469,2]
[373105978,1752861052589,-368.26426719,0.00019469,2]
[373105980,1752861052599,-716.87,0.00019469,2]
[373105982,1752861052608,-460.0,0.00019469,2]
[373105984,1752861052618,-460.0,0.0001947,2]
[373105986,1752861052627,-460.0,0.0001947,2]
[373105988,1752861052636,-460.0,0.0001947,2]
[373105990,1752861052646,-460.0,0.0001947,2]
[373105992,1752861052655,-494.2,0.0001947,2]
[373105994,1752861052664,-460.0,0.0001947,2]
[373105996,1752861052674,-460.0,0.0001947,2]
[373105998,1752861052684,-604.29,0.0001947,2]
[373105999,1752861052694,-460.0,0.0001947,2]
[373106002,1752861052705,-311.93,0.0001947,2]
[373106003,1752861052715,-460.0,0.00019471,2]
[373106005,1752861052725,-2087.03069484,0.00019555,2]
[373106007,1752861052735,-150.0,0.00019568,2]
[373106010,1752861052745,-460.0,0.00019607,2]
[373106012,1752861052754,-1244.16,0.0001964,2]
[373106014,1752861052764,-460.0,0.0001964,2]
[373106016,1752861052773,-1142.47,0.0001964,2]
[373106017,1752861052783,-608.28,0.0001964,2]
[373106019,1752861052792,-460.0,0.0001964,2]
[373106021,1752861052802,-460.0,0.0001964,2]
[373106023,1752861052812,-3269.89,0.00019643,2]
[373106025,1752861052822,-798.34,0.00019643,2]
[373106027,1752861052831,-881.34,0.00019738,2]
[373106029,1752861052841,-1000.0,0.0001974,2]
[373106031,1752861052850,-980.56,0.00019741,2]
[373106033,1752861052860,-1446.12,0.00019741,2]
[373106035,1752861052870,-508.93,0.00019741,2]
[373106037,1752861052879,-1152.65,0.00019741,2]
[373106039,1752861052888,-2211.27,0.00019741,2]
[373106041,1752861052898,-1810.51,0.00019742,2]
[373106043,1752861052907,-525.77,0.00019742,2]
[373106045,1752861052916,-460.0,0.00019742,2]
[373106047,1752861052926,-957.04,0.00019742,2]
[373106049,1752861052935,-625.7,0.00019742,2]
[373106051,1752861052944,-1034.69,0.00019742,2]
[373106053,1752861052953,-460.0,0.00019742,2]
[373106055,1752861052963,-460.0,0.00019742,2]
[373106057,1752861052972,-460.0,0.00019742,2]
[373106059,1752861052982,-460.0,0.00019742,2]
[373106061,1752861052992,-460.0,0.00019743,2]
[373106063,1752861053002,-716.87,0.00019743,2]
[373106065,1752861053012,-460.0,0.00019743,2]
[373106067,1752861053021,-460.0,0.00019744,2]
[373106069,1752861053031,-460.0,0.00019744,2]
[373106071,1752861053040,-460.0,0.00019744,2]
[373106073,1752861053050,-460.0,0.00019744,2]
[373106075,1752861053059,-494.2,0.00019744,2]
[373106077,1752861053069,-460.0,0.00019744,2]
[373106079,1752861053083,-604.29,0.00019744,2]
[373106081,1752861053093,-460.0,0.00019744,2]
[373106083,1752861053103,-440.75840673,0.00019745,2]
[373106085,1752861053112,-2087.03069484,0.00019831,2]
[373106087,1752861053123,-587.0,0.00019847,2]
[373106089,1752861053132,-1244.16,0.00019914,2]
[373106091,1752861053141,-460.0,0.00019914,2]
[373106093,1752861053151,-1142.47,0.00019914,2]
[373106095,1752861053162,-608.28,0.00019914,2]
[373106097,1752861053172,-460.0,0.00019914,2]
[373106099,1752861053182,-460.0,0.00019914,2]
[373106101,1752861053192,-3269.89,0.00019917,2]
[373106103,1752861053202,-798.34,0.00019917,2]
[373106105,1752861053212,-223.0315306,0.00019962,2]
[373106107,1752861053221,-881.34,0.00020012,2]
[373106109,1752861053231,-980.56,0.00020015,2]
[373106111,1752861053240,-1446.12,0.00020015,2]
[373106113,1752861053250,-508.93,0.00020015,2]
[373106115,1752861053259,-1152.65,0.00020015,2]
[373106117,1752861053270,-2211.27,0.00020015,2]
[373106119,1752861053279,-1810.51,0.00020016,2]
[373106121,1752861053288,-525.77,0.00020016,2]
[373106122,1752861053297,-460.0,0.00020016,2]
[373106124,1752861053307,-957.04,0.00020016,2]
[373106127,1752861053317,-625.7,0.00020016,2]
[373106128,1752861053327,-1034.69,0.00020016,2]
[373106130,1752861053337,-460.0,0.00020016,2]
[373106132,1752861053346,-460.0,0.00020016,2]
[373106134,1752861053356,-460.0,0.00020016,2]
[373106136,1752861053367,-460.0,0.00020016,2]
[373106139,1752861053377,-460.0,0.00020017,2]
[373106140,1752861053386,-716.87,0.00020017,2]
[373106143,1752861053396,-460.0,0.00020017,2]
[373106145,1752861053405,-460.0,0.00020018,2]
[373106147,1752861053415,-460.0,0.00020018,2]
[373106149,1752861053424,-460.0,0.00020018,2]
[373106151,1752861053434,-460.0,0.00020018,2]
[373106153,1752861053444,-494.2,0.00020018,2]
[373106155,1752861053454,-460.0,0.00020018,2]
[373106157,1752861053463,-604.29,0.00020018,2]
[373106158,1752861053472,-460.0,0.00020018,2]
[373106160,1752861053482,-184.427967,0.00020019,2]
[373106162,1752861053491,-151.0,0.00020019,2]
[373106164,1752861053501,-151.0,0.00020019,2]
[373106166,1752861053510,-2087.03069484,0.00020107,2]
[373106168,1752861053519,-560.0,0.00020155,2]
[373106170,1752861053529,-513.441042,0.00020187,2]
[373106172,1752861053539,-1244.16,0.00020188,2]
[373106174,1752861053548,-460.0,0.00020188,2]
[373106176,1752861053558,-1142.47,0.00020188,2]
[373106178,1752861053569,-608.28,0.00020188,2]
[373106180,1752861053578,-460.0,0.00020188,2]
[373106182,1752861053588,-460.0,0.00020188,2]
[373106184,1752861053597,-3269.89,0.00020191,2]
[373106186,1752861053607,-798.34,0.00020191,2]
[373106188,1752861053616,-881.34,0.00020286,2]
[373106190,1752861053626,-980.56,0.00020289,2]
[373106192,1752861053635,-1446.12,0.00020289,2]
[373106194,1752861053645,-508.93,0.00020289,2]
[373106196,1752861053654,-1152.65,0.00020289,2]
[373106198,1752861053663,-2211.27,0.00020289,2]
[373106200,1752861053673,-1810.51,0.0002029,2]
[373106202,1752861053683,-525.77,0.0002029,2]
[373106204,1752861053692,-460.0,0.0002029,2]
[373106206,1752861053702,-957.04,0.0002029,2]
[373106208,1752861053711,-625.7,0.0002029,2]
[373106210,1752861053721,-1034.69,0.0002029,2]
[373106212,1752861053730,-460.0,0.0002029,2]
[373106214,1752861053740,-460.0,0.0002029,2]
[373106216,1752861053749,-460.0,0.0002029,2]
[373106218,1752861053759,-583.45,0.0002029,2]
[373106229,1752861053846,-460.0,0.00020291,2]
[373106231,1752861053865,-716.87,0.00020291,2]
[373106233,1752861053875,-460.0,0.00020291,2]
[373106235,1752861053884,-460.0,0.00020292,2]
[373106237,1752861053894,-460.0,0.00020292,2]
[373106239,1752861053904,-460.0,0.00020292,2]
[373106241,1752861053914,-221.93,0.00020292,2]
[373106244,1752861053924,-494.2,0.00020292,2]
[373106246,1752861053934,-460.0,0.00020292,2]
[373106247,1752861053943,-604.29,0.00020292,2]
[373106249,1752861053953,-460.0,0.00020292,2]
[373106252,1752861053962,-647.0,0.00020368,2]
[373106253,1752861053971,-2156.0,0.00020368,2]
[373106256,1752861053981,-968.0,0.00020368,2]
[373106258,1752861053991,-2087.03069484,0.00020383,3]
[373106260,1752861054001,-1244.16,0.00020462,2]
[373106262,1752861054011,-460.0,0.00020462,2]
[373106264,1752861054020,-1142.47,0.00020462,2]
[373106265,1752861054029,-608.28,0.00020462,2]
[373106267,1752861054038,-460.0,0.00020462,2]
[373106270,1752861054048,-460.0,0.00020462,2]
[373106271,1752861054057,-3269.89,0.00020465,2]
[373106274,1752861054069,-798.34,0.00020465,2]
[373106275,1752861054080,-881.34,0.0002056,2]
[373106278,1752861054093,-980.56,0.00020563,2]
[373106280,1752861054102,-1446.12,0.00020563,2]
[373106281,1752861054111,-508.93,0.00020563,2]
[373106284,1752861054122,-1152.65,0.00020563,2]
[373106285,1752861054132,-2211.27,0.00020563,2]
[373106287,1752861054141,-1810.51,0.00020564,2]
[373106289,1752861054150,-525.77,0.00020564,2]
[373106291,1752861054160,-459.41,0.00020564,2]
[373106293,1752861054170,-957.04,0.00020564,2]
[373106295,1752861054180,-625.7,0.00020564,2]
[373106297,1752861054189,-1034.69,0.00020564,2]
[373106299,1752861054199,-460.0,0.00020564,2]
[373106301,1752861054209,-460.0,0.00020564,2]
[373106303,1752861054219,-460.0,0.00020564,2]
[373106305,1752861054228,-460.0,0.00020565,2]
[373106307,1752861054238,-716.87,0.00020565,2]
[373106309,1752861054248,-460.0,0.00020565,2]
[373106311,1752861054258,-460.0,0.00020566,2]
[373106313,1752861054267,-460.0,0.00020566,2]
[373106315,1752861054277,-460.0,0.00020566,2]
[373106317,1752861054287,-494.2,0.00020566,2]
[373106319,1752861054297,-460.0,0.00020566,2]
[373106321,1752861054307,-604.29,0.00020566,2]
[373106323,1752861054319,-460.0,0.00020566,2]
[373106325,1752861054329,-1595.04393525,0.00020651,2]
[373106327,1752861054338,-2087.03069484,0.00020659,3]
[373106329,1752861054347,-660.0,0.00020703,2]
[373106332,1752861054357,-1244.16,0.00020736,2]
[373106334,1752861054368,-460.0,0.00020736,2]
[373106335,1752861054377,-1142.47,0.00020736,2]
[373106337,1752861054387,-608.28,0.00020736,2]
[373106339,1752861054399,-460.0,0.00020736,2]
[373106342,1752861054410,-3269.89,0.00020739,2]
[373106343,1752861054419,-798.34,0.00020739,2]
[373106344,1752861054429,-881.34,0.00020833,2]
[373106345,1752861054438,-980.56,0.00020837,2]
[373106346,1752861054447,-1446.12,0.00020837,2]
[373106347,1752861054456,-508.93,0.00020837,2]
[373106348,1752861054466,-1152.65,0.00020837,2]
[373106349,1752861054475,-2211.27,0.00020837,2]
[373106350,1752861054484,-1810.51,0.00020838,2]
[373106351,1752861054494,-525.77,0.00020838,2]
[373106352,1752861054504,-957.04,0.00020838,2]
[373106353,1752861054513,-625.7,0.00020838,2]
[373106354,1752861054523,-1034.69,0.00020838,2]
[373106355,1752861054532,-460.0,0.00020838,2]
[373106356,1752861054542,-460.0,0.00020838,2]
[373106357,1752861054551,-460.0,0.00020838,2]
[373106358,1752861054560,-460.0,0.00020839,2]
[373106359,1752861054571,-716.87,0.00020839,2]
[373106360,1752861054580,-460.0,0.00020839,2]
[373106361,1752861054589,-460.0,0.0002084,2]
[373106362,1752861054598,-460.0,0.0002084,2]
[373106363,1752861054607,-460.0,0.0002084,2]
[373106364,1752861054616,-494.2,0.0002084,2]
[373106365,1752861054627,-460.0,0.0002084,2]
[373106366,1752861054640,-604.29,0.0002084,2]
[373106367,1752861054650,-460.0,0.0002084,2]
[373106368,1752861054660,-791.927,0.00020857,2]
[373106369,1752861054680,-1677.0,0.00020932,2]
[373106370,1752861054691,-2087.03069484,0.00020934,4]
[373106371,1752861054700,-1677.0,0.00020967,2]
[373106372,1752861054710,-151.0,0.00021,2]
[373106373,1752861054720,-546.06920999,0.0002101,2]
[373106713,1752861058090,-500.0,0.00016723,2]
[373106715,1752861058100,-320.65920407,0.00020736,2]
[373106718,1752861058111,-139.34079593,0.00020736,2]
[373106719,1752861058120,-417.0611451,0.0002101,2]
[373106722,1752861058134,-281.02964491,0.0002101,2]
[373106724,1752861058143,-168.86876384,0.0002101,2]
[373106726,1752861058153,-1142.47,0.0002101,2]
[373106728,1752861058164,-608.28,0.0002101,2]
[373106730,1752861058174,-460.0,0.0002101,2]
[373106732,1752861058183,-99.35159125,0.0002101,2]
[373106742,1752861058268,-460.0,0.00016625,2]
[373106745,1752861058278,-456.15,0.00016899,2]
[373106747,1752861058291,-3.85,0.00016899,2]
[373106749,1752861058301,-460.0,0.00017173,2]
[373106751,1752861058310,-360.64840875,0.0002101,2]
[373106753,1752861058321,-2999.55190705,0.00021013,2]
[373106755,1752861058333,-270.33809295,0.00021013,2]
[373106757,1752861058342,-798.34,0.00021013,2]
[373106759,1752861058352,-441.05354468,0.0002108,2]
[373106761,1752861058363,-775.9496842,0.0002108,2]
[373106772,1752861058456,-250.0,0.00020368,2]
[373106774,1752861058467,-100.943936,0.0002108,2]
[373106782,1752861058533,460.0,0.00016454,2]
[373106805,1752861058739,463.11950371,0.00016454,2]
[373106810,1752861058772,460.0,0.00016456,2]
[373106987,1752861060467,460.0,0.00016455,2]
[373107020,1752861060784,460.0,0.00016454,2]
[373107359,1752861064604,460.0,0.00016454,2]
[373107579,1752861066875,460.0,0.00016454,2]
[373107734,1752861068354,460.0,0.00016454,2]
[373108813,1752861079520,460.0,0.00016455,2]
[373109191,1752861084298,460.0,0.00016455,2]
[373109393,1752861086531,477.85975734,0.00016454,2]
[373109456,1752861087175,460.0,0.00016456,2]
[373109584,1752861088531,460.0,0.00016454,2]
[373110170,1752861102979,460.0,0.00016456,2]
[373110171,1752861103066,953.72,0.00016456,2]
[373110172,1752861104460,460.0,0.00016454,2]
[373110173,1752861106528,953.72,0.00016456,2]
[373110174,1752861111323,460.0,0.00016454,2]
[373110175,1752861119454,460.0,0.00016454,2]
[373110177,1752861122316,460.0,0.00016455,2]
[373110178,1752861125429,460.0,0.00016454,2]
[373110179,1752861137318,332.77,0.00016454,2]
[373110180,1752861163917,460.0,0.00016456,2]
[373110181,1752861166543,460.0,0.00016456,2]
[373110182,1752861189854,460.0,0.00016454,2]
[373110183,1752861191407,242.35,0.00016454,2]
[373110184,1752861197753,460.0,0.00016454,2]
[373110185,1752861203030,460.0,0.00016454,2]
[373110186,1752861217932,460.0,0.00016454,2]
[373110187,1752861222330,527.46,0.00016456,2]
[373110188,1752861232311,460.0,0.00016454,2]
[373110189,1752861249134,460.0,0.00016454,2]
[373110190,1752861262384,228.89911471,0.00016454,2]
[373110191,1752861285970,839.27,0.00016456,2]
[373110192,1752861291390,336.47,0.00016454,2]
[373110193,1752861293014,460.0,0.00016454,2]
[373110194,1752861297768,460.0,0.00016456,2]
[373110195,1752861299749,460.0,0.00016454,2]
[373110196,1752861303897,804.3,0.00016456,2]
[373110198,1752861383420,496.68,0.00016454,2]
[373110199,1752861384563,150.0,0.00014689,2]
[373110200,1752861436970,460.0,0.00016454,2]
[373110201,1752861452787,915.28,0.00016456,2]
[373110202,1752861474112,460.0,0.00016456,2]
[373110203,1752861494229,937.4,0.00016456,2]
[373110204,1752861500381,460.0,0.00016456,2]
[373110205,1752861508093,460.0,0.00016454,2]
[373110206,1752861522960,12309.4385713,0.00015797,2]
[373110208,1752861542139,460.0,0.00016456,2]
[373110209,1752861545808,170.341678,0.00015923,2]
[373110210,1752861564319,460.0,0.00016454,2]
[373110211,1752861575040,819.59,0.00016456,2]
[373110212,1752861575997,3091.08415209,0.0001661,2]
[373110213,1752861576506,150.0,0.00014639,2]
[373110214,1752861595604,460.0,0.00016454,2]
[373110215,1752861597579,893.44967771,0.00016603,2]
[373110216,1752861623692,24900.0,0.00015774,2]
[373110217,1752861625691,785.44,0.00016456,2]
[373110218,1752861685870,1584.85,0.00016456,2]
[373110220,1752861737360,1610.95,0.00016456,2]
[373110221,1752861742074,3672.636806,0.0001661,2]
[373110222,1752861786147,710.22,0.00016456,2]
[373110223,1752861814164,460.0,0.00016456,2]
[373110224,1752861814291,895.92061401,0.00016126,2]
[373110225,1752861814647,447.96030701,0.00016221,2]
[373110226,1752861834802,2100.45,0.00016455,2]
[373110227,1752861857102,680.63,0.00016456,2]
[373110228,1752861861305,826.9930064,0.00015737,2]
[373110229,1752861898325,524.43,0.00016455,2]
[373110230,1752861902700,156.17180801,0.00016524,2]
[373110231,1752861903477,159.47801445,0.00016524,2]
[373110232,1752861936892,2012.93,0.00016454,2]
[373110233,1752861940135,1845.19,0.00016454,2]
[373110235,1752861982786,528.960038,0.00013699,2]
[373110236,1752861989765,535.84,0.00016454,2]
[373110237,1752862025852,1988.42,0.00016454,2]
[373110238,1752862035509,1015.93,0.00016455,2]
[373110240,1752862072540,973.6,0.00016454,2]
[373110241,1752862089427,513.51,0.00016454,2]
[373110242,1752862099684,933.03,0.00016454,2]
[373110243,1752862116599,358.3682456,0.00016126,2]
[373110244,1752862152399,150.0,0.00014626,2]
[373110245,1752862164935,1434.34755899,0.00016525,2]
[373110247,1752862224804,567.99415741,0.00016454,2]
[373110248,1752862224835,326.15584259,0.00016454,2]
[373110249,1752862226234,1079.11,0.00016455,2]
[373110257,1752862232555,-300.0,0.00016623,2]
[373110258,1752862232566,-300.0,0.00016623,2]
[373110259,1752862232575,-122.85,0.00016623,2]
[373110260,1752862232588,-177.15,0.00016623,2]
[373110261,1752862232599,-215.0,0.00016623,2]
[373110262,1752862232609,-170.0429198,0.00016623,2]
[373110278,1752862238421,-672.42778401,0.00016623,2]
[373110279,1752862238434,-69.52929619,0.00016623,2]
[373110280,1752862238444,-504.19638153,0.00016624,2]
[373110281,1752862238454,-460.0,0.00016624,2]
[373110282,1752862238464,-460.0,0.00016624,2]
[373110283,1752862238474,-460.0,0.00016624,2]
[373110284,1752862238484,-460.0,0.00016624,2]
[373110285,1752862238494,-460.0,0.00016624,2]
[373110286,1752862238504,-609.88072142,0.00016624,2]
[373110287,1752862238514,-109.49276618,0.00016624,2]
[373110288,1752862238605,-404.1400576,0.00016624,2]
[373110289,1752862238615,-892.72353036,0.00016624,2]
[373110301,1752862241890,-79.05646964,0.00016624,2]
[373110302,1752862241901,-460.0,0.00016624,2]
[373110303,1752862241911,-460.0,0.00016624,2]
[373110304,1752862241921,-460.0,0.00016624,2]
[373110305,1752862241930,-866.63,0.00016624,2]
[373110306,1752862241939,-460.0,0.00016624,2]
[373110307,1752862241949,-469.45,0.00016624,2]
[373110308,1752862241959,-1102.0967805,0.00016624,2]
[373110345,1752862243584,-476.2932195,0.00016624,2]
[373110346,1752862243594,-460.0,0.00016624,2]
[373110347,1752862243603,-460.0,0.00016624,2]
[373110348,1752862243615,-661.01,0.00016624,2]
[373110349,1752862243625,-124.2233914,0.00016624,2]
[373110358,1752862246675,-335.7766086,0.00016624,2]
[373110361,1752862246685,-86.9720194,0.00016624,2]
[373110363,1752862246697,-352.156064,0.00016624,2]
[373110372,1752862246779,-20.8719166,0.00016624,2]
[373110374,1752862246788,-460.0,0.00016624,2]
[373110376,1752862246797,-460.0,0.00016624,2]
[373110378,1752862246807,-460.0,0.00016625,2]
[373110380,1752862246817,-333.46847986,0.00016625,2]
[373110383,1752862246827,-460.0,0.00016625,2]
[373110385,1752862246836,-460.0,0.00016625,2]
[373110387,1752862246845,-384.75258912,0.00016625,2]
[373110389,1752862246855,-460.0,0.00016625,2]
[373110391,1752862246866,-413.8,0.00016625,2]
[373110393,1752862246876,-460.0,0.00016625,2]
[373110395,1752862246885,-217.47496504,0.00016625,2]
[373110397,1752862246896,-460.0,0.00016625,2]
[373110399,1752862246906,-362.77490137,0.00016625,2]
[373110401,1752862246915,-460.0,0.00016625,2]
[373110403,1752862246924,-338.24749406,0.00016625,2]
[373111500,1752862258476,460.0,0.00016455,2]
[373112166,1752862265728,1034.14,0.00016454,2]
[373112179,1752862281317,3355.3577013,0.00015776,2]
[373112180,1752862297006,3154.38239623,0.00015776,2]
[373112181,1752862297032,35057.38758007,0.00015776,2]
[373112182,1752862299493,991.05,0.00016454,2]
[373112183,1752862306159,848.77,0.00016455,2]
[373112184,1752862310771,460.0,0.00016454,2]
[373112185,1752862345386,460.0,0.00016454,2]
[373112186,1752862370496,1045.35,0.00016454,2]
[373112187,1752862402629,906.39,0.00016454,2]
[373112188,1752862415013,460.0,0.00016454,2]
[373112189,1752862417871,181.345222,0.00016125,2]
[373112190,1752862422343,1856.83,0.00016455,2]
[373112191,1752862437111,868.63,0.00016454,2]
[373112192,1752862507596,1864.24719793,0.00016454,2]
[373112193,1752862507622,118.01280207,0.00016454,2]
[373112195,1752862510411,931.61,0.00016454,2]
[373112196,1752862522138,844.88,0.00016455,2]
[373112197,1752862531057,1899.67,0.00016454,2]
[373112198,1752862598854,2.70714114,0.00016454,2]
[373112199,1752862598878,1817.81285886,0.00016454,2]
[373112200,1752862610787,809.68,0.00016454,2]
[373112201,1752862622052,775.94,0.00016454,2]
[373112202,1752862641203,421.6962264,0.0001565,2]
[373112203,1752862672814,150.0,0.00014605,2]
[373112204,1752862698256,775.93,0.00016454,2]
[373112205,1752862708597,5248.94091474,0.00015757,2]
[373112206,1752862708620,10000.0,0.00015757,2]
[373112207,1752862708642,9651.05908526,0.00015757,2]
[373112208,1752862776113,348.94091474,0.000165,2]
[373112209,1752862776136,4651.05908526,0.000165,2]
[373112210,1752862792224,5000.0,0.000165,2]
[373112211,1752862836377,348.94091474,0.000165,2]
[373112214,1752862864888,2181.6409973,0.00015625,2]
[373112215,1752862922904,1000.0,0.00027,120]
[373112216,1752862931383,6582.78400714,0.00016244,2]
[373112219,1752863019881,4651.05908526,0.000164,2]
[373112220,1752863068179,502.512036,0.00013699,2]
[373112225,1752863246962,207.331959,0.00016799,10]
[373112226,1752863319774,22049.57469778,0.00025435,120]
[373112228,1752863327073,305.3916999,0.0002739,120]
[373112269,1752863432663,-2220.74076837,0.00016436,2]
[373112270,1752863432676,-1020.6724831,0.00016436,2]
[373112271,1752863432687,-1267.36140284,0.00016436,2]
[373112272,1752863432699,-3186.40489255,0.00016436,2]
[373112273,1752863432709,-413.88068587,0.00016523,2]
[373112275,1752863432720,-841.17342822,0.00016523,2]
[373112276,1752863432731,-1200.0,0.0001662,2]
[373112277,1752863432743,-300.0,0.00016621,2]
[373112279,1752863432754,-300.0,0.00016621,2]
[373112280,1752863432763,-300.0,0.00016621,2]
[373112281,1752863432772,-300.0,0.00016621,2]
[373112282,1752863432782,-460.0,0.00016621,2]
[373112283,1752863432791,-460.0,0.00016622,2]
[373112284,1752863432801,-148.92538264,0.00016622,2]
[373112285,1752863432813,-311.07461736,0.00016622,2]
[373112286,1752863432825,-460.0,0.00016622,2]
[373112287,1752863432835,-460.0,0.00016622,2]
[373112288,1752863432844,-460.0,0.00016622,2]
[373112289,1752863432855,-460.0,0.00016622,2]
[373112290,1752863432864,-460.0,0.00016622,2]
[373112291,1752863432874,-1302.83,0.00016622,2]
[373112292,1752863432883,-460.0,0.00016622,2]
[373112293,1752863432893,-460.0,0.00016622,2]
[373112294,1752863432903,-460.0,0.00016622,2]
[373112295,1752863432913,-460.0,0.00016622,2]
[373112296,1752863432923,-1180.96,0.00016622,2]
[373112297,1752863432932,-460.0,0.00016622,2]
[373112298,1752863432941,-460.0,0.00016622,2]
[373112299,1752863432951,-231.39501375,0.00016622,2]
[373112300,1752863432960,-721.39,0.00016622,2]
[373112301,1752863432970,-460.0,0.00016622,2]
[373112302,1752863432980,-460.0,0.00016622,2]
[373112303,1752863432990,-460.0,0.00016622,2]
[373112304,1752863433001,-460.0,0.00016622,2]
[373112305,1752863433010,-460.0,0.00016622,2]
[373112306,1752863433020,-418.1351885,0.00016622,2]
[373112307,1752863433030,-460.0,0.00016622,2]
[373112308,1752863433040,-994.19,0.00016622,2]
[373112309,1752863433049,-460.0,0.00016622,2]
[373112310,1752863433059,-460.0,0.00016622,2]